[Event "34th MPL National U12G Chess-ch 2022"]
[Site "Mysore"]
[Date "2022.04.13"]
[Round "9.3"]
[White "Sherali Pattnaik"]
[Black "Charvi A"]
[Result "1/2-1/2"]
[ECO "B90"]
[WhiteElo "1209"]
[BlackElo "1267"]
[Annotator "NA RC"]
[PlyCount "66"]
[EventDate "2022.04.09"]
[EventCountry "IND"]
[SourceTitle "playchess.com"]
[Source "ChessBase"]
[SourceQuality "1"]
[TimeControl "5400+30"]

1. e4 {[%emt 0:00:04]} c5 {[%emt 0:00:10]} 2. Nf3 {[%emt 0:00:05]} d6 {[%emt 0:00:15]} 3. d4 {[%emt 0:00:04]} cxd4 {[%emt 0:00:45]} 4. Nxd4 {[%emt 0:00:02]} Nf6 {[%emt 0:00:25]} 5. Nc3 {[%emt 0:00:04]} a6 {[%emt 0:00:56]} 6. Be3 {[%emt 0:02:58]} e5 {[%emt 0:00:30]} 7. Nb3 {[%emt 0:00:06]} Be7 {[%emt 0:02:12]} 8. f3 {[%emt 0:02:56]} Be6 {[%emt 0:01:51]} 9. Qd2 {[%emt 0:01:36]} Nbd7 {[%emt 0:01:41]} 10. O-O-O {[%emt 0:01:29]} O-O {[%emt 0:00:24]} 11. g4 {[%emt 0:01:58]} b5 {[%emt 0:00:12]} 12. h4 {[%emt 0:13:04]} Rc8 {[%emt 0:02:20]} 13. Kb1 {[%emt 0:03:57]} b4 {[%emt 0:00:47]} 14. Ne2 {[%emt 0:01:05]} a5 {[%emt 0:00:56]} 15. Ng3 {[%emt 0:02:49]} a4 {[%emt 0:02:06]} 16. Nc1 {[%emt 0:00:03]} d5 {[%emt 0:00:19]} 17. g5 {[%emt 0:07:49]} d4 {[%emt 0:00:10]} 18. Bf2 {[%emt 0:01:34]} Ne8 {[%emt 0:00:17]} 19. f4 {[%emt 0:03:10]} exf4 {[%emt 0:03:03]} 20. Qxf4 {[%emt 0:00:35]} Bd6 {[%emt 0:01:30]} 21. Qd2 {[%emt 0:01:38]} Qc7 {[%emt 0:01:44]} 22. Nge2 {[%emt 0:04:48]} Nc5 {[%emt 0:02:50]} 23. Bg2 {[%emt 0:03:22]} b3 {[%emt 0:00:20]} 24. Nxd4 {[%emt 0:03:37]} bxa2+ {[%emt 0:00:19]} 25. Ka1 {[%emt 0:01:24]} Bf4 {[%emt 0:01:28]} 26. Qe2 {[%emt 0:08:26]} Nd6 {[%emt 0:02:05]} 27. Nxa2 {[%emt 0:06:59]} Nc4 {[%emt 0:03:33]} 28. Bh3 {[%emt 0:06:00]} Bxh3 {[%emt 0:01:10]} 29. Rxh3 {[%emt 0:00:01]} Nd6 {[%emt 0:01:32]} 30. e5 {[%emt 0:06:17]} Nde4 {[%emt 1:09:40]} 31. Be3 {[%emt 0:00:20]} Bxe3 {[%emt 0:00:00]} 32. Rxe3 {[%emt 0:00:56]} Qxe5 {[%emt 0:00:00]} 33. Nc3 {[%emt 0:01:20]} Rfe8 {[%emt 0:00:00]} 1/2-1/2

[Event "34th MPL National U12G Chess-ch 2022"]
[Site "Mysore"]
[Date "2022.04.13"]
[Round "9.4"]
[White "Devaki Nandana"]
[Black "Kalyani Sirin"]
[Result "0-1"]
[ECO "C54"]
[WhiteElo "1266"]
[BlackElo "1243"]
[Annotator "NA RC"]
[PlyCount "115"]
[EventDate "2022.04.09"]
[EventCountry "IND"]
[SourceTitle "playchess.com"]
[Source "ChessBase"]
[SourceQuality "1"]
[TimeControl "5400+30"]

1. e4 {[%emt 0:00:04]} e5 {[%emt 0:00:13]} 2. Nf3 {[%emt 0:00:08]} Nc6 {[%emt 0:00:11]} 3. Bc4 {[%emt 0:00:10]} Bc5 {[%emt 0:00:13]} 4. c3 {[%emt 0:00:18]} Nf6 {[%emt 0:00:10]} 5. d3 {[%emt 0:00:20]} d6 {[%emt 0:01:21]} 6. Bb3 {[%emt 0:01:40]} Bg4 {[%emt 0:01:53]} 7. Nbd2 {[%emt 0:03:07]} O-O {[%emt 0:01:08]} 8. h3 {[%emt 0:01:20]} Be6 {[%emt 0:09:30]} 9. Bc2 {[%emt 0:05:23]} d5 {[%emt 0:04:05]} 10. Qe2 {[%emt 0:05:03]} dxe4 {[%emt 0:03:52]} 11. dxe4 {[%emt 0:00:52]} h6 {[%emt 0:03:07]} 12. Nf1 {[%emt 0:16:48]} Re8 {[%emt 0:03:48]} 13. Ng3 {[%emt 0:10:59]} a5 {[%emt 0:08:10]} 14. a4 {[%emt 0:03:29]} Qd7 {[%emt 0:03:44]} 15. Nh4 {[%emt 0:08:09]} Rad8 {[%emt 0:03:03]} 16. Qf3 {[%emt 0:10:57]} Bc4 {[%emt 0:06:52]} 17. Nhf5 {[%emt 0:07:13]} Bd3 {[%emt 0:15:07]} 18. Bb3 {[%emt 0:08:13]} Nb4 {[%emt 0:11:47]} 19. Be3 {[%emt 0:13:01]} Ba6 {[%emt 0:02:56]} 20. Ne2 {[%emt 0:01:53]} Bxe3 {[%emt 0:01:15]} 21. Qxe3 {[%emt 0:01:17]} Nd3+ {[%emt 0:00:25]} 22. Kf1 {[%emt 0:00:05]} Nf4 {[%emt 0:00:13]} 23. c4 {[%emt 0:00:28]} Bxc4 {[%emt 0:00:12]} 24. Nfg3 {[%emt 0:00:48]} Nxe4 {[%emt 0:07:55]} 25. Nxe4 {[%emt 0:00:36]} Bxe2+ {[%emt 0:00:18]} 26. Kg1 {[%emt 0:00:16]} Qf5 {[%emt 0:05:05]} 27. Ng3 {[%emt 0:00:46]} Qd3 {[%emt 0:01:22]} 28. Qxd3 {[%emt 0:00:32]} Bxd3 {[%emt 0:00:27]} 29. Kh2 {[%emt 0:00:15]} Kf8 {[%emt 0:00:45]} 30. Rac1 {[%emt 0:00:36]} c6 {[%emt 0:00:23]} 31. Rc5 {[%emt 0:00:36]} Rd4 {[%emt 0:00:49]} 32. Rxa5 {[%emt 0:00:31]} Rb4 {[%emt 0:00:11]} 33. Bd1 {[%emt 0:00:34]} Rxb2 {[%emt 0:00:14]} 34. Ra7 {[%emt 0:00:30]} Rxf2 {[%emt 0:00:23]} 35. Rg1 {[%emt 0:00:26]} Ba6 {[%emt 0:00:52]} 36. Ne4 {[%emt 0:00:27]} Rb2 {[%emt 0:00:31]} 37. Nc5 {[%emt 0:00:09]} e4 {[%emt 0:00:47]} 38. Bb3 {[%emt 0:00:27]} e3 {[%emt 0:00:53]} 39. Nxa6 {[%emt 0:00:23]} Rxb3 {[%emt 0:00:47]} 40. Nc5 {[%emt 0:00:05]} Rb2 {[%emt 0:00:24]} 41. Rxb7 {[%emt 0:00:38]} Rxb7 {[%emt 0:00:05]} 42. Nxb7 {[%emt 0:00:03]} e2 {[%emt 0:00:15]} 43. g3 {[%emt 0:00:12]} Nd3 {[%emt 0:00:13]} 44. a5 {[%emt 0:00:10]} e1=Q {[%emt 0:00:15]} 45. Rxe1 {[%emt 0:00:10]} Re6 {[%emt 0:06:51]} 46. Re3 Rxe3 {[%emt 0:00:00]} 47. a6 {[%emt 0:00:32]} Re1 {[%emt 0:00:00]} 48. Nd6 {[%emt 0:00:14]} Ra1 {[%emt 0:00:00]} 49. Kg2 {[%emt 0:00:20]} c5 {[%emt 0:00:00]} 50. Nc4 Rxa6 {[%emt 0:00:00]} 51. Nb6 {[%emt 0:00:09]} Ra4 {[%emt 0:00:00]} 52. Kf3 {[%emt 0:00:18]} Rd4 {[%emt 0:00:00]} 53. Ke3 {[%emt 0:00:04]} c4 {[%emt 0:00:00]} 54. Kxd4 {[%emt 0:00:09]} c3 {[%emt 0:00:00]} 55. Nd7+ {[%emt 0:00:00]} Ke7 {[%emt 0:00:00]} 56. Ne5 {[%emt 0:06:37]} Ke6 {[%emt 0:00:00]} 57. Nxd3 {[%emt 0:00:00]} Kf5 {[%emt 0:00:00]} 58. Nc5 {[%emt 0:01:00]} 0-1

[Event "34th MPL National U12G Chess-ch 2022"]
[Site "Mysore"]
[Date "2022.04.13"]
[Round "9.5"]
[White "Shanmathi Sree S"]
[Black "Saparya Ghosh"]
[Result "0-1"]
[ECO "B22"]
[WhiteElo "1109"]
[BlackElo "1341"]
[Annotator "NA RC"]
[PlyCount "120"]
[EventDate "2022.04.09"]
[EventCountry "IND"]
[SourceTitle "playchess.com"]
[Source "ChessBase"]
[SourceQuality "1"]
[TimeControl "5400+30"]

1. e4 {[%emt 0:00:18]} c5 {[%emt 0:00:22]} 2. d4 {[%emt 0:00:12]} cxd4 {[%emt 0:00:13]} 3. c3 {[%emt 0:00:05]} Nf6 {[%emt 0:00:15]} 4. e5 {[%emt 0:02:01]} Nd5 {[%emt 0:00:12]} 5. Nf3 {[%emt 0:06:19]} e6 {[%emt 0:10:43]} 6. Nxd4 {[%emt 0:08:46]} d6 {[%emt 0:20:27]} 7. exd6 {[%emt 0:11:34]} Qxd6 {[%emt 0:10:33]} 8. Be2 {[%emt 0:11:19]} a6 {[%emt 0:05:30]} 9. O-O {[%emt 0:08:55]} Be7 {[%emt 0:01:31]} 10. Nd2 {[%emt 0:07:13]} O-O {[%emt 0:01:35]} 11. Re1 {[%emt 0:05:59]} Nd7 {[%emt 0:02:40]} 12. Bf3 {[%emt 0:07:01]} N7f6 {[%emt 0:04:18]} 13. h3 {[%emt 0:07:23]} h6 {[%emt 0:02:08]} 14. Qc2 {[%emt 0:04:35]} Rd8 {[%emt 0:03:23]} 15. a4 {[%emt 0:05:33]} Bd7 {[%emt 0:01:29]} 16. c4 {[%emt 0:02:21]} Nb4 {[%emt 0:00:55]} 17. Qc3 {[%emt 0:01:27]} Nc6 {[%emt 0:03:41]} 18. Nc2 {[%emt 0:02:13]} Rac8 {[%emt 0:01:07]} 19. b3 {[%emt 0:00:28]} Qc7 {[%emt 0:01:21]} 20. Be4 {[%emt 0:01:23]} Nxe4 {[%emt 0:08:51]} 21. Nxe4 {[%emt 0:00:05]} Qe5 {[%emt 0:02:39]} 22. Qxe5 {[%emt 0:01:44]} Nxe5 {[%emt 0:00:05]} 23. Ng3 {[%emt 0:00:41]} Nd3 {[%emt 0:00:41]} 24. Re3 {[%emt 0:00:37]} Nxc1 {[%emt 0:00:19]} 25. Rxc1 {[%emt 0:00:04]} Bg5 {[%emt 0:00:06]} 26. Rce1 {[%emt 0:01:02]} Bxe3 {[%emt 0:00:10]} 27. Rxe3 {[%emt 0:00:08]} Bc6 {[%emt 0:00:10]} 28. Nh5 {[%emt 0:00:44]} g6 {[%emt 0:00:23]} 29. Nf6+ {[%emt 0:00:10]} Kg7 {[%emt 0:00:05]} 30. Ng4 {[%emt 0:00:14]} Rd1+ {[%emt 0:00:43]} 31. Kh2 {[%emt 0:00:07]} a5 {[%emt 0:00:50]} 32. f3 {[%emt 0:01:50]} Rd2 {[%emt 0:00:29]} 33. Ne1 {[%emt 0:00:32]} Rcd8 {[%emt 0:00:56]} 34. Rc3 {[%emt 0:00:30]} Re2 {[%emt 0:00:44]} 35. Nd3 {[%emt 0:00:48]} Bxf3 {[%emt 0:03:56]} 36. Nf4 {[%emt 0:01:26]} Bxg4 {[%emt 0:00:05]} 37. hxg4 {[%emt 0:00:18]} Re4 {[%emt 0:00:08]} 38. Kg3 {[%emt 0:00:15]} Rdd4 {[%emt 0:00:20]} 39. Rf3 {[%emt 0:00:26]} e5 {[%emt 0:00:38]} 40. Nd5 {[%emt 0:00:56]} Rxg4+ {[%emt 0:00:07]} 41. Kh3 {[%emt 0:00:32]} Rh4+ {[%emt 0:02:17]} 42. Kg3 {[%emt 0:00:08]} Rhg4+ {[%emt 0:01:07]} 43. Kh3 {[%emt 0:00:09]} Rg5 {[%emt 0:01:41]} 44. Nf6 {[%emt 0:01:02]} Rf5 {[%emt 0:00:50]} 45. Rxf5 {[%emt 0:01:30]} gxf5 {[%emt 0:00:06]} 46. Nh5+ {[%emt 0:00:06]} Kg6 {[%emt 0:00:05]} 47. Ng3 {[%emt 0:00:15]} f4 {[%emt 0:00:08]} 48. Ne2 {[%emt 0:00:10]} Rd3+ {[%emt 0:00:07]} 49. Kg4 {[%emt 0:00:18]} f5+ {[%emt 0:00:18]} 50. Kh4 {[%emt 0:00:06]} Rxb3 {[%emt 0:00:08]} 51. Ng1 {[%emt 0:01:22]} Rb4 {[%emt 0:00:24]} 52. Nf3 {[%emt 0:00:15]} Kf6 {[%emt 0:00:04]} 53. Kh5 {[%emt 0:00:12]} Rxc4 {[%emt 0:00:11]} 54. Kxh6 {[%emt 0:00:09]} Rxa4 {[%emt 0:00:05]} 55. Kh5 {[%emt 0:00:35]} e4 {[%emt 0:00:21]} 56. Ng1 {[%emt 0:00:20]} Ra1 {[%emt 0:00:12]} 57. Nh3 {[%emt 0:00:06]} Rh1 {[%emt 0:00:12]} 58. Kh4 {[%emt 0:00:16]} Rxh3+ {[%emt 0:00:04]} 59. gxh3 {[%emt 0:00:39]} e3 {[%emt 0:00:05]} 60. Kh5 {[%emt 0:00:11]} e2 {[%emt 0:00:04]} 0-1

[Event "34th MPL National U12G Chess-ch 2022"]
[Site "Mysore"]
[Date "2022.04.13"]
[Round "9.6"]
[White "Shanjula Senthil"]
[Black "Arshiya Das"]
[Result "0-1"]
[ECO "B23"]
[WhiteElo "1168"]
[BlackElo "1407"]
[Annotator "NA RC"]
[PlyCount "140"]
[EventDate "2022.04.09"]
[EventCountry "IND"]
[SourceTitle "playchess.com"]
[Source "ChessBase"]
[SourceQuality "1"]
[TimeControl "5400+30"]

1. e4 {[%emt 0:00:03]} c5 {[%emt 0:00:06]} 2. Nc3 {[%emt 0:00:15]} d6 {[%emt 0:00:05]} 3. f4 {[%emt 0:00:07]} g6 {[%emt 0:00:05]} 4. Nf3 {[%emt 0:00:12]} Bg7 {[%emt 0:00:07]} 5. Bc4 {[%emt 0:00:19]} Nc6 {[%emt 0:00:08]} 6. O-O {[%emt 0:01:03]} Nf6 {[%emt 0:00:30]} 7. d3 {[%emt 0:00:18]} O-O {[%emt 0:00:16]} 8. Qe1 {[%emt 0:01:16]} Nd4 {[%emt 1:33:13]} 9. Nxd4 {[%emt 0:01:20]} cxd4 {[%emt 0:00:00]} 10. Ne2 {[%emt 0:00:30]} d5 {[%emt 0:00:00]} 11. e5 {[%emt 0:04:32]} dxc4 {[%emt 0:00:00]} 12. exf6 {[%emt 0:00:27]} Bxf6 {[%emt 0:00:00]} 13. dxc4 {[%emt 0:13:12]} Be6 {[%emt 0:00:00]} 14. Qf2 {[%emt 0:08:33]} Bxc4 {[%emt 0:00:00]} 15. Rd1 {[%emt 0:03:00]} Bxe2 {[%emt 0:00:00]} 16. Qxe2 {[%emt 0:00:09]} Qc7 {[%emt 0:00:00]} 17. Rd3 {[%emt 0:06:33]} Rfc8 {[%emt 0:00:00]} 18. c3 {[%emt 0:10:11]} dxc3 {[%emt 0:00:00]} 19. bxc3 {[%emt 0:00:07]} Bxc3 {[%emt 0:00:00]} 20. Rb1 {[%emt 0:01:22]} Rd8 {[%emt 0:00:00]} 21. Be3 {[%emt 0:08:48]} Rxd3 {[%emt 0:00:00]} 22. Qxd3 {[%emt 0:00:08]} Rd8 {[%emt 0:00:00]} 23. Qe4 {[%emt 0:02:11]} Bd2 {[%emt 0:00:00]} 24. Bxa7 {[%emt 0:07:03]} b5 {[%emt 0:00:00]} 25. Be3 {[%emt 0:03:34]} Bxe3+ {[%emt 0:00:00]} 26. Qxe3 {[%emt 0:00:10]} Qc2 {[%emt 0:00:00]} 27. Rc1 {[%emt 0:03:55]} Qd2 {[%emt 0:00:00]} 28. Re1 {[%emt 0:03:11]} Qxe3+ {[%emt 0:00:00]} 29. Rxe3 {[%emt 0:00:06]} e6 {[%emt 0:00:00]} 30. Rb3 {[%emt 0:02:11]} Rd5 {[%emt 0:00:00]} 31. Kf2 {[%emt 0:00:59]} Kf8 {[%emt 0:00:00]} 32. Kf3 {[%emt 0:00:53]} Ke7 {[%emt 0:00:00]} 33. g3 {[%emt 0:01:48]} Kd6 {[%emt 0:00:00]} 34. Ra3 {[%emt 0:01:09]} Kc6 {[%emt 0:00:00]} 35. Ra7 {[%emt 0:00:50]} Rd7 {[%emt 0:00:00]} 36. Ra8 {[%emt 0:01:00]} Kd5 {[%emt 0:00:00]} 37. Ra5 {[%emt 0:01:21]} Kc4 {[%emt 0:00:00]} 38. Ke4 {[%emt 0:00:20]} b4 {[%emt 0:00:00]} 39. Ra8 {[%emt 0:01:33]} Rd2 {[%emt 0:00:00]} 40. h4 {[%emt 0:00:59]} Rd5 {[%emt 0:00:00]} 41. Ra7 {[%emt 0:02:08]} f5+ {[%emt 0:00:00]} 42. Ke3 {[%emt 0:00:27]} Rd3+ {[%emt 0:00:00]} 43. Kf2 {[%emt 0:00:24]} Ra3 {[%emt 0:00:00]} 44. Rc7+ {[%emt 0:02:33]} Kd3 {[%emt 0:00:00]} 45. Rd7+ {[%emt 0:01:31]} Kc2 {[%emt 0:00:04]} 46. Rc7+ {[%emt 0:02:08]} Kb2 {[%emt 0:01:26]} 47. Rb7 {[%emt 0:00:25]} Rxa2 {[%emt 0:00:21]} 48. Ke2 {[%emt 0:00:31]} b3 {[%emt 0:00:18]} 49. Kd3 {[%emt 0:00:45]} Ra4 {[%emt 0:00:26]} 50. Rb8 {[%emt 0:00:29]} Ka2 {[%emt 0:00:13]} 51. Kc3 {[%emt 0:01:58]} Ra7 {[%emt 0:00:19]} 52. Rxb3 {[%emt 0:03:59]} Rc7+ {[%emt 0:00:04]} 53. Kd4 {[%emt 0:00:17]} Kxb3 {[%emt 0:00:03]} 54. Ke5 {[%emt 0:00:08]} Rc3 {[%emt 0:19:46]} 55. Kxe6 {[%emt 0:00:16]} Rxg3 {[%emt 0:00:00]} 56. Kf6 {[%emt 0:00:21]} Rg4 {[%emt 0:00:00]} 57. h5 {[%emt 0:00:15]} Rxf4 {[%emt 0:00:00]} 58. hxg6 {[%emt 0:00:07]} hxg6 {[%emt 0:00:00]} 59. Kxg6 {[%emt 0:00:07]} Rf1 {[%emt 0:00:00]} 60. Kg5 {[%emt 0:00:08]} Kc3 {[%emt 0:00:00]} 61. Kf6 {[%emt 0:00:06]} Kd3 {[%emt 0:00:00]} 62. Ke6 {[%emt 0:00:10]} f4 {[%emt 0:00:00]} 63. Kd5 {[%emt 0:00:15]} f3 {[%emt 0:00:00]} 64. Kc5 {[%emt 0:00:06]} f2 {[%emt 0:00:00]} 65. Kd6 {[%emt 0:00:12]} Re1 {[%emt 0:00:00]} 66. Kc5 {[%emt 0:00:29]} f1=Q {[%emt 0:00:00]} 67. Kd5 {[%emt 0:00:17]} Qf5+ {[%emt 0:00:00]} 68. Kc6 {[%emt 0:00:14]} Re6+ {[%emt 0:00:00]} 69. Kd7 {[%emt 0:00:05]} Qf7+ {[%emt 0:00:00]} 70. Kd8 {[%emt 0:00:04]} Re8# {[%emt 0:08:00]} 0-1

[Event "34th MPL National U12G Chess-ch 2022"]
[Site "Mysore"]
[Date "2022.04.13"]
[Round "10.1"]
[White "Shubhi Gupta"]
[Black "Shreya G Hipparagi"]
[Result "0-1"]
[ECO "D59"]
[WhiteElo "1434"]
[BlackElo "1552"]
[Annotator "NA RC"]
[PlyCount "118"]
[EventDate "2022.04.09"]
[EventCountry "IND"]
[SourceTitle "playchess.com"]
[Source "ChessBase"]
[SourceQuality "1"]
[TimeControl "5400+30"]

1. d4 {[%emt 0:00:22]} Nf6 {[%emt 0:00:11]} 2. c4 {[%emt 0:00:16]} e6 {[%emt 0:00:16]} 3. Nf3 {[%emt 0:00:30]} d5 {[%emt 0:00:24]} 4. Nc3 {[%emt 0:01:11]} Be7 {[%emt 0:06:20]} 5. Bg5 {[%emt 0:00:54]} h6 {[%emt 0:00:20]} 6. Bh4 {[%emt 0:00:23]} O-O {[%emt 0:00:36]} 7. e3 {[%emt 0:01:25]} b6 {[%emt 0:01:16]} 8. cxd5 {[%emt 0:01:03]} Nxd5 {[%emt 0:01:00]} 9. Bxe7 {[%emt 0:02:49]} Qxe7 {[%emt 0:00:10]} 10. Bd3 {[%emt 0:01:19]} Bb7 {[%emt 0:01:27]} 11. Nxd5 {[%emt 0:02:53]} Bxd5 {[%emt 0:03:13]} 12. O-O {[%emt 0:00:52]} Nd7 {[%emt 0:01:03]} 13. Rc1 {[%emt 0:01:38]} c5 {[%emt 0:00:57]} 14. Bb1 {[%emt 0:03:25]} Rac8 {[%emt 0:01:03]} 15. Qd3 {[%emt 0:02:02]} Nf6 {[%emt 0:01:43]} 16. Nd2 {[%emt 0:01:47]} Bb7 {[%emt 0:06:19]} 17. e4 {[%emt 0:06:14]} g6 {[%emt 0:01:07]} 18. e5 {[%emt 0:02:28]} Nd5 {[%emt 0:00:54]} 19. f4 {[%emt 0:06:09]} Rfd8 {[%emt 0:04:18]} 20. Qh3 {[%emt 0:02:54]} Kg7 {[%emt 0:01:47]} 21. Ne4 {[%emt 0:15:00]} cxd4 {[%emt 0:04:58]} 22. Rxc8 {[%emt 0:02:05]} Rxc8 {[%emt 0:02:35]} 23. Nd6 {[%emt 0:00:38]} Rc7 {[%emt 0:00:41]} 24. f5 {[%emt 0:02:27]} exf5 {[%emt 0:05:35]} 25. Rxf5 {[%emt 0:02:22]} Bc8 {[%emt 0:05:31]} 26. Qg3 {[%emt 0:19:18]} Qe6 {[%emt 0:03:17]} 27. Rf1 {[%emt 0:01:33]} Ne3 {[%emt 0:04:29]} 28. Re1 {[%emt 0:02:09]} Ba6 {[%emt 0:03:10]} 29. h4 {[%emt 0:03:39]} Re7 {[%emt 0:01:23]} 30. Rxe3 {[%emt 0:01:06]} dxe3 {[%emt 0:01:33]} 31. Nf5+ {[%emt 0:00:09]} Kh7 {[%emt 0:08:43]} 32. Nxe7 {[%emt 0:02:18]} Qxe7 {[%emt 0:00:19]} 33. h5 {[%emt 0:01:00]} Qg5 {[%emt 0:02:21]} 34. Qf3 {[%emt 0:00:36]} Bc4 {[%emt 0:01:38]} 35. b3 {[%emt 0:01:50]} e2 {[%emt 0:01:32]} 36. hxg6+ {[%emt 0:02:27]} fxg6 {[%emt 0:00:53]} 37. Qb7+ {[%emt 0:01:19]} Kh8 {[%emt 0:00:27]} 38. Qc8+ {[%emt 0:00:29]} Bg8 {[%emt 0:01:01]} 39. Qc3 {[%emt 0:00:19]} Be6 {[%emt 0:01:44]} 40. Kf2 {[%emt 0:01:27]} Qg4 {[%emt 0:02:31]} 41. Qe3 {[%emt 0:01:25]} Kg7 {[%emt 0:01:12]} 42. Bd3 {[%emt 0:01:01]} Bd5 {[%emt 0:01:37]} 43. g3 {[%emt 0:00:44]} Qf3+ {[%emt 0:04:42]} 44. Qxf3 {[%emt 0:00:31]} Bxf3 {[%emt 0:00:11]} 45. Bxe2 {[%emt 0:00:46]} Bxe2 {[%emt 0:00:06]} 46. Kxe2 {[%emt 0:00:02]} h5 {[%emt 0:00:59]} 47. a4 {[%emt 0:04:06]} g5 {[%emt 0:00:23]} 48. b4 {[%emt 0:00:30]} Kf7 {[%emt 0:00:12]} 49. Ke3 {[%emt 0:00:36]} Ke6 {[%emt 0:00:05]} 50. Ke4 {[%emt 0:01:05]} h4 {[%emt 0:00:06]} 51. gxh4 {[%emt 0:00:35]} gxh4 {[%emt 0:00:05]} 52. a5 {[%emt 0:00:19]} h3 {[%emt 0:00:17]} 53. Kf3 {[%emt 0:00:03]} Kxe5 {[%emt 0:00:04]} 54. Kg3 {[%emt 0:00:11]} Kd4 {[%emt 0:00:25]} 55. Kxh3 {[%emt 0:00:08]} Kc4 {[%emt 0:00:04]} 56. Kg3 {[%emt 0:00:07]} Kxb4 {[%emt 0:00:07]} 57. axb6 {[%emt 0:00:03]} axb6 {[%emt 0:00:09]} 58. Kf3 {[%emt 0:00:04]} Kc3 {[%emt 0:00:06]} 59. Ke2 {[%emt 0:00:05]} Kc2 {[%emt 0:00:14]} 0-1

[Event "34th MPL National U12G Chess-ch 2022"]
[Site "Mysore"]
[Date "2022.04.13"]
[Round "10.2"]
[White "Kalyani Sirin"]
[Black "Sherali Pattnaik"]
[Result "0-1"]
[ECO "B41"]
[WhiteElo "1243"]
[BlackElo "1209"]
[Annotator "NA RC"]
[PlyCount "92"]
[EventDate "2022.04.09"]
[EventCountry "IND"]
[SourceTitle "playchess.com"]
[Source "ChessBase"]
[SourceQuality "1"]
[TimeControl "5400+30"]

1. e4 {[%emt 0:00:07]} c5 {[%emt 0:00:02]} 2. Nf3 {[%emt 0:00:11]} e6 {[%emt 0:00:14]} 3. d4 {[%emt 0:00:08]} cxd4 {[%emt 0:00:03]} 4. Nxd4 {[%emt 0:00:09]} a6 {[%emt 0:00:02]} 5. c4 {[%emt 0:00:27]} Nf6 {[%emt 0:00:31]} 6. Nc3 {[%emt 0:01:00]} d6 {[%emt 0:00:04]} 7. Be3 {[%emt 0:00:24]} Be7 {[%emt 0:00:36]} 8. Be2 {[%emt 0:00:39]} O-O {[%emt 0:00:44]} 9. O-O {[%emt 0:00:24]} Nbd7 {[%emt 0:00:09]} 10. Rc1 {[%emt 0:00:40]} Qc7 {[%emt 0:00:25]} 11. f3 {[%emt 0:01:59]} b6 {[%emt 0:00:23]} 12. Qd2 {[%emt 0:02:21]} Bb7 {[%emt 0:00:44]} 13. Kh1 {[%emt 0:00:50]} Rac8 {[%emt 0:02:26]} 14. b3 {[%emt 0:02:42]} Qb8 {[%emt 0:06:07]} 15. g4 {[%emt 0:03:01]} Ne5 {[%emt 0:09:53]} 16. g5 {[%emt 0:03:31]} Nfd7 {[%emt 0:00:29]} 17. f4 {[%emt 0:01:46]} Nc6 {[%emt 0:00:50]} 18. Bf3 {[%emt 0:14:12]} Qa8 {[%emt 0:01:42]} 19. Qg2 {[%emt 0:02:14]} Nc5 {[%emt 1:14:36]} 20. Rcd1 {[%emt 0:03:46]} Rfd8 {[%emt 0:00:00]} 21. h4 {[%emt 0:03:15]} Bf8 {[%emt 0:00:00]} 22. h5 {[%emt 0:01:45]} Ne7 {[%emt 0:00:00]} 23. b4 {[%emt 0:12:25]} Nd7 {[%emt 0:00:00]} 24. g6 {[%emt 0:07:08]} hxg6 {[%emt 0:00:00]} 25. hxg6 {[%emt 0:00:36]} Nxg6 {[%emt 0:00:00]} 26. Nxe6 {[%emt 0:12:09]} Nh4 {[%emt 0:00:00]} 27. Qg4 {[%emt 0:00:46]} Nf6 {[%emt 0:00:00]} 28. Qxh4 {[%emt 0:01:05]} fxe6 {[%emt 0:00:00]} 29. Bxb6 {[%emt 0:05:05]} Re8 {[%emt 0:00:00]} 30. Rd4 {[%emt 0:05:01]} e5 {[%emt 0:00:00]} 31. fxe5 {[%emt 0:00:39]} dxe5 {[%emt 0:00:00]} 32. Nd5 {[%emt 0:06:42]} Nxd5 {[%emt 0:00:00]} 33. Bh5 {[%emt 0:04:51]} Nf6 {[%emt 0:00:00]} 34. Rxf6 {[%emt 0:01:58]} gxf6 {[%emt 0:00:00]} 35. Bf7+ {[%emt 0:01:15]} Kxf7 {[%emt 0:00:00]} 36. Qh7+ {[%emt 0:00:24]} Bg7 {[%emt 0:00:00]} 37. Rd7+ {[%emt 0:00:20]} Re7 {[%emt 0:00:00]} 38. Rxe7+ {[%emt 0:00:06]} Kxe7 {[%emt 0:00:00]} 39. Qxg7+ {[%emt 0:00:07]} Ke6 {[%emt 0:00:00]} 40. Qg4+ {[%emt 0:00:25]} Kd6 {[%emt 0:00:00]} 41. c5+ {[%emt 0:00:21]} Kc6 {[%emt 0:00:00]} 42. Qe6+ {[%emt 0:00:24]} Kb5 {[%emt 0:00:00]} 43. Qd7+ {[%emt 0:00:46]} Kc4 {[%emt 0:00:00]} 44. Qe6+ {[%emt 0:02:01]} Kd3 {[%emt 0:00:00]} 45. Qb3+ {[%emt 0:01:57]} Kxe4 {[%emt 0:00:00]} 46. Qc2+ {[%emt 0:00:18]} Kf4+ {[%emt 0:13:30]} 0-1

[Event "34th MPL National U12G Chess-ch 2022"]
[Site "Mysore"]
[Date "2022.04.13"]
[Round "10.3"]
[White "Saparya Ghosh"]
[Black "Charvi A"]
[Result "1-0"]
[ECO "E67"]
[WhiteElo "1341"]
[BlackElo "1267"]
[Annotator "NA RC"]
[PlyCount "87"]
[EventDate "2022.04.09"]
[EventCountry "IND"]
[SourceTitle "playchess.com"]
[Source "ChessBase"]
[SourceQuality "1"]
[TimeControl "5400+30"]

1. d4 {[%emt 0:01:30]} Nf6 {[%emt 0:00:28]} 2. c4 {[%emt 0:00:42]} g6 {[%emt 0:00:18]} 3. g3 {[%emt 0:00:47]} Bg7 {[%emt 0:01:56]} 4. Bg2 {[%emt 0:01:37]} O-O {[%emt 0:01:42]} 5. Nc3 {[%emt 0:00:32]} d6 {[%emt 0:01:00]} 6. Nf3 {[%emt 0:00:10]} Nbd7 {[%emt 0:00:14]} 7. O-O {[%emt 0:00:20]} Re8 {[%emt 0:00:58]} 8. e4 {[%emt 0:05:14]} a6 {[%emt 0:00:45]} 9. Re1 {[%emt 0:06:26]} c5 {[%emt 0:02:25]} 10. e5 {[%emt 0:05:34]} dxe5 {[%emt 0:03:54]} 11. dxe5 {[%emt 0:00:41]} Ng4 {[%emt 0:02:28]} 12. Bf4 {[%emt 0:03:25]} e6 {[%emt 1:20:22]} 13. Qe2 {[%emt 0:11:24]} Qc7 {[%emt 0:00:00]} 14. h3 {[%emt 0:01:26]} Nh6 {[%emt 0:00:00]} 15. g4 {[%emt 0:01:40]} Rb8 {[%emt 0:00:00]} 16. Qe3 {[%emt 0:02:40]} Nb6 {[%emt 0:00:00]} 17. Bxh6 {[%emt 0:02:59]} Nxc4 {[%emt 0:00:00]} 18. Qf4 {[%emt 0:04:10]} Nxb2 {[%emt 0:00:00]} 19. Bxg7 {[%emt 0:01:13]} Kxg7 {[%emt 0:00:00]} 20. Qf6+ {[%emt 0:01:11]} Kg8 {[%emt 0:00:00]} 21. Ne4 {[%emt 0:00:52]} Nd3 {[%emt 0:00:00]} 22. Re3 {[%emt 0:02:45]} Nb4 {[%emt 0:00:00]} 23. Qh4 {[%emt 0:00:59]} Nd5 {[%emt 0:00:00]} 24. Nf6+ {[%emt 0:44:13]} Nxf6 {[%emt 0:00:00]} 25. exf6 {[%emt 0:00:00]} Qf4 {[%emt 0:00:00]} 26. Rae1 {[%emt 0:00:00]} h5 {[%emt 0:00:00]} 27. Re4 {[%emt 0:00:00]} Qh6 {[%emt 0:00:00]} 28. g5 {[%emt 0:00:00]} Qh7 {[%emt 0:00:00]} 29. Rc4 {[%emt 0:00:00]} b6 {[%emt 0:00:00]} 30. Qg3 {[%emt 0:00:00]} Bb7 {[%emt 0:00:00]} 31. Ne5 {[%emt 0:00:00]} Bd5 {[%emt 0:00:00]} 32. Rc2 {[%emt 0:00:00]} Rbd8 {[%emt 0:00:00]} 33. Nc6 {[%emt 0:00:00]} Bxc6 {[%emt 0:00:00]} 34. Bxc6 {[%emt 0:00:00]} Rf8 {[%emt 0:00:00]} 35. Rb1 {[%emt 0:00:00]} h4 {[%emt 0:00:00]} 36. Qe3 {[%emt 0:00:00]} Rb8 {[%emt 0:00:00]} 37. Bf3 {[%emt 0:00:00]} Rfd8 {[%emt 0:00:00]} 38. Rcb2 {[%emt 0:00:00]} Rd6 {[%emt 0:00:00]} 39. Qe5 {[%emt 0:00:00]} Rbd8 {[%emt 0:00:00]} 40. Rxb6 {[%emt 0:00:00]} Rd3 {[%emt 0:00:00]} 41. Rb8 {[%emt 0:00:00]} c4 {[%emt 0:00:00]} 42. Rxd8+ {[%emt 0:00:00]} Rxd8 {[%emt 0:00:00]} 43. Rb8 {[%emt 0:00:00]} Rxb8 {[%emt 0:00:00]} 44. Qxb8# {[%emt 0:10:00]} 1-0